[Event "Baku Open 2024"]
[Site "Baku"]
[Date "2024.07.02"]
[Round "4.4"]
[White "Aditya Mittal"]
[Black "Ilamparthi A R"]
[Result "1-0"]
[ECO "B13"]
[WhiteElo "2595"]
[BlackElo "2446"]
[Annotator "TA"]
[PlyCount "147"]
[EventDate "2024.06.29"]
[EventType "swiss"]
[EventCountry "AZE"]
[SourceTitle "playchess.com"]
[Source "ChessBase"]
[SourceQuality "1"]
[TimeControl "5400+30"]

{[%evp 45,147,0,0,0,3,0,0,0,49,24,308,300,302,301,281,189,199,191,206,196,189,174,175,159,252,253,283,264,448,447,456,433,691,687,939,894,2523,2376,1643,4199,2846,2389,4918,4902,1732,0,659,659,636,610,1016,1491,29967,29967,29967,29967,29971,29971,29976,29975,29975,29967,29964,0,29974,29976,29982,29972,29972,29974,29978,29975,29979,29976,29978,29979,29979,29980,29980,29981,29982,29983,29983,29984,29984,29985,29986,29986,29988,29987,29987,29988,29988,29989,29988,29989,29993,29994,29994,29995,29995,29991,29996,29982]} 1. d4 {[%emt 0:00:02]} d5 {[%emt 0:01:02]} 2. Nf3 {[%emt 0:00:02]} Nf6 {[%emt 0:00:25]} 3. Bf4 {[%emt 0:00:02]} c5 {[%emt 0:00:36]} 4. e3 {[%emt 0:00:01]} Nc6 {[%emt 0:00:21]} 5. Nbd2 {[%emt 0:00:02]} cxd4 {[%emt 0:01:44]} 6. exd4 {[%emt 0:00:01]} Bg4 {[%emt 0:00:15]} 7. c3 {[%emt 0:00:33]} e6 {[%emt 0:00:22]} 8. Qb3 {[%emt 0:01:48]} Bd6 {[%emt 0:00:37]} 9. Qxb7 {[%emt 0:03:29]} O-O {[%emt 0:01:46]} 10. Bxd6 {[%emt 0:13:33]} Qxd6 {[%emt 0:00:03]} 11. Bb5 {[%emt 0:00:35]} Bxf3 {[%emt 0:07:01]} 12. Qxc6 {[%emt 0:11:19]} Qxc6 {[%emt 0:00:11]} 13. Bxc6 {[%emt 0:00:02]} Bxg2 {[%emt 0:00:10]} 14. Rg1 {[%emt 0:09:04]} Rac8 {[%emt 0:00:47]} 15. Ba4 {[%emt 0:02:11]} Bh3 {[%emt 0:01:46]} 16. Bc2 {[%emt 0:03:09]} Bg4 {[%emt 0:06:59]} 17. a4 {[%emt 0:03:06]} Bh5 {[%emt 0:01:46]} 18. a5 {[%emt 0:03:29]} Ne8 {[%emt 0:05:29]} 19. Rg5 {[%emt 0:07:33]} g6 {[%emt 0:06:17]} 20. Nb3 {[%emt 0:05:15]} Rb8 {[%emt 0:02:34]} 21. Ra2 {[%emt 0:00:05]} Nd6 {[%emt 0:04:43]} 22. Nc5 {[%emt 0:00:07]} Rbd8 {[%emt 0:00:45]} 23. a6 {[%emt 0:05:18]} f6 {[%emt 0:11:50]} 24. Rg3 {[%emt 0:02:35]} Rde8 {[%emt 0:08:47]} 25. Ba4 {[%emt 0:11:33]} Re7 {[%emt 0:00:09]} 26. Re3 {[%emt 0:00:13]} Rff7 {[%emt 0:07:23]} (26... Kf7 $11 {was preferrable.}) 27. Bc6 {[%emt 0:03:24]} ({And not} 27. Nxe6 Nf5 28. Nf4 Nxe3 29. fxe3 Rxe3+ 30. Kd2 Rfe7 $17) (27. Rxe6 $2 Rxe6+ 28. Nxe6 Re7 $19) 27... Nf5 $2 {[%emt 0:03:11][%mdl 8192]} (27... Nc4 $11) 28. Rxe6 $18 {[%emt 0:01:57]} Bf3 {[%emt 0:11:55]} 29. Kd2 {[%emt 0:00:49]} g5 {[%emt 0:01:08]} 30. c4 {[%emt 0:08:04]} Nxd4 {[%emt 0:01:02]} 31. Rxe7 {[%emt 0:00:02]} Rxe7 {[%emt 0:00:02]} 32. Bxd5+ {[%emt 0:00:06]} Bxd5 {[%emt 0:00:09]} 33. cxd5 {[%emt 0:00:02]} Re5 {[%emt 0:02:45]} 34. Nd7 {[%emt 0:00:47]} Rf5 {[%emt 0:00:07]} (34... Re7 $16 35. Nxf6+ Kf7) 35. Kd3 $18 {[%emt 0:00:57]} Nb5 {[%emt 0:00:41]} 36. Kc4 {[%emt 0:00:38]} Nd6+ $2 {[%emt 0:00:08]} (36... Nc7 {was worth a try.} 37. b4 Kf7) 37. Kc5 $18 {[%emt 0:00:57]} Ne4+ {[%emt 0:00:05]} 38. Kc6 {[%emt 0:01:48]} Kf7 {[%emt 0:02:54]} (38... Rxf2 $142 39. Kb7 Rxh2 40. Kxa7 Nd6) 39. Ra4 $18 {[%emt 0:00:35]} Nxf2 {[%emt 0:00:43]} 40. Nc5 {[%emt 0:00:11]} Rf3 {[%emt 0:02:54]} 41. d6 {[%emt 0:00:47]} Nd3 {[%emt 0:00:11]} 42. Nxd3 {[%emt 0:02:27]} Rxd3 {[%emt 0:00:02]} 43. d7 {[%emt 0:00:06]} f5 {[%emt 0:00:06]} 44. Ra3 {[%emt 0:00:15]} Rd4 {[%emt 0:00:15] [#]} 45. Ra4 $2 {[%emt 0:02:08]} (45. Re3 $3 $18 {[%mdl 512] Hoping for Re8.} Rc4+ (45... f4 46. Re8) 46. Kd5) 45... Rxa4 $4 {[%emt 0:02:32][%mdl 8192]} (45... Rd3 $11) 46. d8=Q $18 {[%emt 0:00:09]} (46. d8=R $2 {loses.} Rxa6+ 47. Kb7 Ra2 $19 (47... Rb6+ 48. Kxa7 Rb3 49. Rd7+ Kg6 50. Rd6+ Kh5 51. Rd2 $19)) 46... Rxa6+ {[%emt 0:00:04]} 47. Kb7 {[%emt 0:01:57]} Rb6+ {[%emt 0:03:35]} 48. Kxa7 {[%emt 0:00:01]} Rxb2 {[%emt 0:00:12]} 49. Qxg5 {[%emt 0:00:04]} Rb5 {[%emt 0:01:04]} 50. Qh6 {[%emt 0:00:18]} Rd5 {[%emt 0:01:27]} 51. Kb6 {[%emt 0:00:30]} f4 {[%emt 0:00:49]} 52. Kc6 {[%emt 0:00:51]} Rf5 {[%emt 0:00:41]} 53. Kd7 {[%emt 0:00:02]} Rd5+ {[%emt 0:00:06]} 54. Kc6 {[%emt 0:00:01]} Rf5 {[%emt 0:00:01]} 55. Qxh7+ {[%emt 0:00:07]} Kf6 {[%emt 0:01:26]} 56. Qh4+ {[%emt 0:00:16]} Ke5 {[%emt 0:00:50]} 57. Qe1+ {[%emt 0:00:54]} Kf6 {[%emt 0:00:28]} 58. Qc3+ {[%emt 0:00:46]} Kg5 {[%emt 0:00:49]} 59. Qf3 {[%emt 0:01:54]} Re5 {[%emt 0:00:06]} 60. h4+ {[%emt 0:00:36]} Kf5 {[%emt 0:00:05]} 61. Kd6 {[%emt 0:00:28]} Re6+ {[%emt 0:01:19]} 62. Kd5 {[%emt 0:01:29]} Rh6 {[%emt 0:00:06]} 63. Qh3+ {[%emt 0:00:00]} Kg6 {[%emt 0:00:10]} 64. Qg4+ {[%emt 0:00:00]} Kh7 {[%emt 0:00:09]} 65. Qxf4 {[%emt 0:00:00]} Rg6 {[%emt 0:00:13]} 66. Ke5 {[%emt 0:00:00]} Kg7 {[%emt 0:00:09]} 67. Qd4 {[%emt 0:00:13]} Kh6 {[%emt 0:00:41]} 68. Kf5 {[%emt 0:00:13]} Rg8 {[%emt 0:00:05]} 69. Qf6+ {[%emt 0:00:33]} Kh7 {[%emt 0:00:04]} 70. Qf7+ {[%emt 0:00:03]} Kh8 {[%emt 0:00:05]} 71. Qh5+ {[%emt 0:00:25]} Kg7 {[%emt 0:00:01]} 72. Qg6+ {[%emt 0:00:05]} Kf8 {[%emt 0:00:04]} 73. Qf6+ {[%emt 0:00:03]} Ke8 {[%emt 0:00:04]} 74. Ke4 {[%emt 0:04:25]} 1-0

[Event "Baku Open 2024"]
[Site "Baku"]
[Date "2024.07.02"]
[Round "4.5"]
[White "Mamedov, Edgar"]
[Black "Muradli, Mahammad"]
[Result "1/2-1/2"]
[ECO "D63"]
[WhiteElo "2410"]
[BlackElo "2575"]
[Annotator "TA"]
[PlyCount "54"]
[EventDate "2024.06.29"]
[EventType "swiss"]
[EventCountry "AZE"]
[SourceTitle "playchess.com"]
[Source "ChessBase"]
[SourceQuality "1"]
[TimeControl "5400+30"]

{[%evp 14,54,16,11,14,14,18,25,9,8,18,7,18,0,12,0,0,0,9,15,11,10,12,15,35,27,47,37,47,0,8,0,10,8,13,6,8,8,8,0,0,0,0]} 1. d4 {[%emt 0:00:07]} Nf6 {[%emt 0:08:14]} 2. c4 {[%emt 0:00:15]} e6 {[%emt 0:00:05]} 3. Nf3 {[%emt 0:00:20]} d5 {[%emt 0:00:12]} 4. Nc3 {[%emt 0:00:17]} Nbd7 {[%emt 0:00:17]} 5. Bg5 {[%emt 0:02:07]} h6 {[%emt 0:03:07]} 6. Bh4 {[%emt 0:00:46]} Be7 {[%emt 0:00:27]} 7. e3 {[%emt 0:01:25]} O-O {[%emt 0:00:32]} 8. Rc1 {[%emt 0:03:19]} c5 {[%emt 0:01:17]} 9. cxd5 {[%emt 0:02:57]} Nxd5 {[%emt 0:00:10]} 10. Bxe7 {[%emt 0:00:46]} Nxe7 {[%emt 0:00:08] White has an edge.} 11. Be2 {[%emt 0:04:45]} b6 {[%emt 0:03:59]} 12. O-O {[%emt 0:01:01]} Bb7 {[%emt 0:00:23]} 13. Qa4 {[%emt 0:06:08]} Nf5 {[%emt 0:08:11]} 14. dxc5 {[%emt 0:17:32]} Nxc5 {[%emt 0:00:29]} 15. Qf4 {[%emt 0:00:46]} Qd6 {[%emt 0:14:21]} 16. Qxd6 {[%emt 0:06:10]} Nxd6 {[%emt 0:01:33][%cal Bf5d6,Bd6e8,Be8f6,Bf6e4,Be4c3,Bc3a2][%mdl 32]} 17. Rfd1 {[%emt 0:02:47]} Rfd8 {[%emt 0:00:55]} 18. b4 {[%emt 0:05:21]} Nce4 {[%emt 0:02:05]} 19. Nxe4 {[%emt 0:01:57]} Bxe4 {[%emt 0:14:26]} 20. Ne5 {[%emt 0:03:13]} Ne8 {[%emt 0:09:13]} 21. Bf3 {[%emt 0:06:29]} Rxd1+ {[%emt 0:05:34] The position is equal.} 22. Rxd1 {[%emt 0:00:30]} Nf6 {[%emt 0:00:12]} 23. Bxe4 {[%emt 0:10:24]} Nxe4 {[%emt 0:00:03]} 24. Nc6 {[%emt 0:00:34]} a5 {[%emt 0:03:22]} 25. bxa5 {[%emt 0:02:26]} bxa5 {[%emt 0:02:10]} 26. f3 {[%emt 0:01:59]} Nc3 {[%emt 0:02:03][%csl LRa2,LRd1]} 27. Rd3 {[%emt 0:00:06]} Nxa2 {[%emt 0:01:09] Weighted Error Value: White=0.05 (flawless) /Black=0.05 (flawless) .  Inaccurate:     	White=1     	---        OK:         	White=9     	Black=7} 1/2-1/2

[Event "Baku Open 2024"]
[Site "Baku"]
[Date "2024.07.02"]
[Round "4.6"]
[White "Asadli, Vugar"]
[Black "Manafov, Vugar"]
[Result "1/2-1/2"]
[ECO "B42"]
[WhiteElo "2560"]
[BlackElo "2430"]
[Annotator "TA"]
[PlyCount "97"]
[EventDate "2024.06.29"]
[EventType "swiss"]
[EventCountry "AZE"]
[SourceTitle "playchess.com"]
[Source "ChessBase"]
[SourceQuality "1"]
[TimeControl "5400+30"]

{[%evp 11,97,35,45,15,22,14,29,24,30,24,63,38,67,54,70,91,87,35,46,9,99,63,70,56,53,53,55,49,53,27,22,15,37,15,23,9,18,5,14,9,24,24,37,38,47,47,79,33,48,49,75,75,96,96,96,96,89,89,89,0,89,86,89,89,127,112,112,64,132,127,128,129,135,106,112,116,117,0,0,0,0,0,0,0,0,-33,-10,-26]} 1. e4 {[%emt 0:01:23]} c5 {[%emt 0:02:31]} 2. Nf3 {[%emt 0:00:27]} e6 {[%emt 0:00:25]} 3. d4 {[%emt 0:00:13]} cxd4 {[%emt 0:00:08]} 4. Nxd4 {[%emt 0:00:05]} a6 {[%emt 0:00:11]} 5. Bd3 {[%emt 0:00:06]} Bc5 {[%emt 0:00:19]} 6. Nb3 {[%emt 0:00:14]} Ba7 {[%emt 0:00:20]} 7. Bf4 {[%emt 0:00:31]} d6 {[%emt 0:00:15]} 8. Qd2 {[%emt 0:00:21]} Nf6 {[%emt 0:01:25]} 9. Nc3 {[%emt 0:02:51] White has an edge.} e5 {[%emt 0:00:45]} 10. Bg3 {[%emt 0:00:58]} Nh5 {[%emt 0:19:46]} 11. O-O-O {[%emt 0:05:48]} Nc6 {[%emt 0:05:39]} 12. Bc4 {[%emt 0:08:58]} Nxg3 {[%emt 0:09:34]} 13. hxg3 {[%emt 0:02:31]} Be6 {[%emt 0:02:32]} 14. Bxe6 {[%emt 0:07:36]} (14. Bd5 $16) 14... fxe6 $14 {[%emt 0:00:09]} 15. f3 {[%emt 0:00:09][%cal Oh1h5]} ({But not} 15. Qxd6 Qxd6 16. Rxd6 Bxf2 $11) 15... Bd4 {[%emt 0:25:13]} (15... Qc7 $11 {remains equal.}) 16. Ne2 {[%emt 0:10:49]} Bc5 {[%emt 0:00:32]} 17. Nxc5 {[%emt 0:04:31]} dxc5 {[%emt 0:00:05]} 18. Qxd8+ {[%emt 0:01:17]} Rxd8 {[%emt 0:01:20]} 19. Rxd8+ {[%emt 0:00:20]} Kxd8 {[%emt 0:00:28][%mdl 4096] Endgame. KRN-KRN} 20. g4 {[%emt 0:00:05]} Ke7 {[%emt 0:01:52]} 21. c3 {[%emt 0:02:36]} Kf6 {[%emt 0:01:30]} 22. Ng3 {[%emt 0:01:54]} h6 {[%emt 0:00:58]} 23. Kd2 {[%emt 0:02:53]} Rd8+ {[%emt 0:00:21]} 24. Ke2 {[%emt 0:00:29]} Na5 {[%emt 0:04:41]} 25. Nf1 {[%emt 0:02:41]} Nc4 {[%emt 0:00:50]} 26. b3 {[%emt 0:02:13]} Nd6 {[%emt 0:03:28] White must now prevent ...Nb5.} 27. Ne3 {[%emt 0:10:25]} Ke7 {[%emt 0:00:22]} 28. a4 {[%emt 0:03:01][%cal Ba2a4,Ba4a5][%mdl 32]} Rc8 {[%emt 0:03:57]} 29. Kd3 {[%emt 0:04:06]} ({Better is} 29. a5 $16) 29... Rd8 {[%emt 0:01:04]} 30. Kc2 {[%emt 0:00:09]} Rc8 {[%emt 0:01:29]} 31. a5 {[%emt 0:06:44]} Rd8 {[%emt 0:01:30]} 32. Nd1 {[%emt 0:02:48]} Kd7 {[%emt 0:08:50]} 33. Nb2 {[%emt 0:01:03]} Kc6 {[%emt 0:00:08]} 34. Nd3 {[%emt 0:01:53]} Nf7 {[%emt 0:00:19]} 35. Nb2 {[%emt 0:03:31]} (35. Ra1 $16) 35... Kb5 {[%emt 0:00:24]} (35... Nd6 $1 $11) 36. Ra1 $16 {[%emt 0:01:20]} Rd7 {[%emt 0:00:57]} 37. Nd3 {[%emt 0:00:14]} Rd8 {[%emt 0:00:36]} 38. Ra4 {[%emt 0:00:14]} Rc8 {[%emt 0:03:48]} 39. c4+ {[%emt 0:00:46]} Kc6 {[%emt 0:00:02] [#]} 40. b4 $1 {[%emt 0:00:02]} cxb4 {[%emt 0:00:20]} 41. Rxb4 {[%emt 0:00:00]} Rc7 {[%emt 0:00:07]} 42. Kc3 {[%emt 0:02:21]} Kd7 {[%emt 0:00:15]} 43. Rb6 {[%emt 0:00:44]} Ke7 {[%emt 0:00:06] [#]} 44. c5 {[%emt 0:00:09] White is more active.} (44. Kb4 $1 $16) 44... Nd8 $11 {[%emt 0:00:23]} 45. Kb3 {[%emt 0:02:13]} Nc6 {[%emt 0:00:38]} 46. Ka4 {[%emt 0:00:05] Strongly threatening Nb4.} Kd7 {[%emt 0:01:17]} 47. Nb2 {[%emt 0:01:51]} Nd8 {[%emt 0:00:22]} 48. Rd6+ {[%emt 0:02:10]} Ke7 {[%emt 0:00:04]} 49. Nd3 {[%emt 0:03:37] Weighted Error Value: White=0.16 (very precise) /Black=0.15 (very precise) .  Mistake:       	White=4     	Black=2      Inaccurate:     	White=4     	Black=6      OK:         	White=16    	Black=16     Best:        	White=1     	Black=2      Strong:       	White=1     	---} 1/2-1/2

[Event "Baku Open 2024"]
[Site "Baku"]
[Date "2024.07.02"]
[Round "4.7"]
[White "Hamidov, Allahverdi"]
[Black "Yeletsky, Ivan"]
[Result "0-1"]
[ECO "D63"]
[WhiteElo "2307"]
[BlackElo "2498"]
[Annotator "TA"]
[PlyCount "70"]
[EventDate "2024.06.29"]
[EventType "swiss"]
[EventCountry "AZE"]
[SourceTitle "playchess.com"]
[Source "ChessBase"]
[SourceQuality "1"]
[TimeControl "5400+30"]

{[%evp 20,70,30,25,19,12,21,30,26,23,33,18,18,18,20,18,13,0,33,0,8,-15,27,25,25,16,6,0,20,20,23,0,0,-128,-128,-129,-127,-200,-223,-447,-431,-1418,-1400,-1350,-1293,-29983,-29984,-29984,-29985,-29985,-29986,-5573,-1188]} 1. d4 {[%emt 0:00:03]} Nf6 {[%emt 0:06:14]} 2. c4 {[%emt 0:00:06]} e6 {[%emt 0:00:08]} 3. Nc3 {[%emt 0:00:29]} d5 {[%emt 0:00:34]} 4. Bg5 {[%emt 0:01:10]} Be7 {[%emt 0:00:41]} 5. e3 {[%emt 0:00:34]} h6 {[%emt 0:00:20]} 6. Bh4 {[%emt 0:00:12]} O-O {[%emt 0:00:17]} 7. Nf3 {[%emt 0:00:14]} Nbd7 {[%emt 0:00:27]} 8. Rc1 {[%emt 0:00:13]} c6 {[%emt 0:00:49]} 9. Bd3 {[%emt 0:00:15]} a6 {[%emt 0:02:38]} 10. cxd5 {[%emt 0:23:46]} exd5 {[%emt 0:00:47]} 11. O-O {[%emt 0:00:45]} Ne4 {[%emt 0:01:01] ...Nxc3 is the strong threat.} 12. Bxe7 {[%emt 0:01:14]} Qxe7 {[%emt 0:00:16]} 13. Bxe4 {[%emt 0:04:59]} dxe4 {[%emt 0:00:15] White has an edge.} 14. Nd2 {[%emt 0:00:07]} Nf6 {[%emt 0:00:11]} 15. Na4 {[%emt 1:03:53]} Be6 {[%emt 0:06:46]} 16. Qc2 {[%emt 0:00:00]} Bd5 {[%emt 0:01:59]} 17. Qc5 {[%emt 0:00:00]} Qe6 {[%emt 0:01:05]} 18. Qb6 {[%emt 0:00:00]} Qe7 {[%emt 0:04:00]} 19. Qc5 {[%emt 0:00:00]} Qe6 {[%emt 0:03:03]} 20. Qb6 {[%emt 0:00:00]} Rab8 {[%emt 0:12:04][%cal Of6d7]} 21. Nc5 {[%emt 0:00:00]} Qe7 {[%emt 0:01:06]} 22. a4 {[%emt 0:00:00]} h5 {[%emt 0:05:17]} 23. Rfe1 {[%emt 0:00:00]} Ng4 {[%emt 0:07:15][%cal Bf6g4,Bg4h6,Bh6f5][%mdl 32] aiming for ...Qh4.} 24. h3 {[%emt 0:00:00]} Nh6 {[%emt 0:00:33]} 25. f4 {[%emt 0:00:00]} Nf5 {[%emt 0:19:13]} ({Much weaker is} 25... exf3 26. e4 fxg2 27. exd5 $14) 26. Qb4 {[%emt 0:00:00] [#]} (26. Rc2 $11) 26... a5 $1 $17 {[%emt 0:03:27][%mdl 512]} 27. Qa3 {[%emt 0:00:00][%cal Oc5e4] [#]} (27. Qb6 Kh7) 27... Rfe8 $1 {[%emt 0:05:25]} 28. Ncb3 {[%emt 0:00:00]} (28. Re2 $17 {was worth a try.}) 28... Qh4 $19 {[%emt 0:07:24] White must now prevent ...Re6.} 29. Nxa5 $2 {[%emt 0:00:00]} (29. Nf1) 29... Re6 {[%emt 0:00:17] ...Rg6 would now be deadly.} 30. Nf1 {[%emt 0:00:00]} (30. Re2 $142 Rg6 31. Kh2) 30... Rg6 {[%emt 0:00:54][%cal Of5d4] White is weak on the light squares} 31. Re2 {[%emt 0:00:00]} Qxh3 {[%emt 0:00:16] ( -> ...Nh4)} 32. Rcc2 {[%emt 0:00:00]} Nh4 {[%emt 0:01:47]} 33. Nh2 {[%emt 0:00:00]} Nf3+ {[%emt 0:00:32]} 34. Nxf3 {[%emt 0:00:00]} exf3 {[%emt 0:00:08]} 35. e4 {[%emt 0:00:00]} fxe2 {[%emt 0:00:28] Weighted Error Value: White=0.61/Black=0.04 (flawless) .  Mistake:       	White=4     	---        Inaccurate:     	---       	Black=2      OK:         	White=5     	Black=8      Best:        	White=1     	Black=2} (35... Bxe4 $142 36. f5 fxe2 37. Qxh3 e1=Q+ (37... e1=B $2 {perishes.} 38. fxg6 Bxc2 39. gxf7+ Kxf7 40. Qd7+ Kg8 41. Qe6+ Kh8 42. Qxe1 $18) (37... Rxg2+ $2 38. Qxg2 e1=Q+ 39. Qf1 $19) 38. Kh2 Rg5 (38... Bxc2 $2 39. fxg6 Bxg6 40. Nc4 $19) (38... Qxa5 $2 39. fxg6 Qc7+ 40. Qg3 $19)) 0-1

[Event "Baku Open 2024"]
[Site "Baku"]
[Date "2024.07.02"]
[Round "4.8"]
[White "Shyam, Sundar M."]
[Black "Stribuk, Artiom"]
[Result "1/2-1/2"]
[ECO "B89"]
[WhiteElo "2493"]
[BlackElo "2422"]
[Annotator "TA"]
[PlyCount "115"]
[EventDate "2024.06.29"]
[EventType "swiss"]
[EventCountry "AZE"]
[SourceTitle "playchess.com"]
[Source "ChessBase"]
[SourceQuality "1"]
[TimeControl "5400+30"]

{[%evp 16,115,18,14,14,10,5,-25,-27,-41,-28,-39,-39,-52,-52,-43,-50,-39,-37,-37,-32,-39,-5,-40,-40,-52,-61,-61,-46,-46,-54,-70,-24,-16,-6,-7,-8,-8,-8,-18,-29,-26,-25,-60,-55,-39,-35,-50,-63,-58,-20,-28,-29,-15,-10,-37,6,8,8,14,8,0,0,0,0,0,0,0,0,0,0,0,0,0,0,-8,-8,-8,-8,-8,-8,-8,-8,-8,0,-8,-8,-8,0,-8,0,0,0,-8,0,-8,-8,-8,-8,-8,-8,-8]} 1. e4 {[%emt 0:00:51]} c5 {[%emt 0:00:13]} 2. Nf3 {[%emt 0:00:12]} d6 {[%emt 0:00:13]} 3. d4 {[%emt 0:00:37]} cxd4 {[%emt 0:00:09]} 4. Nxd4 {[%emt 0:00:04]} Nf6 {[%emt 0:00:08]} 5. Nc3 {[%emt 0:00:04]} Nc6 {[%emt 0:00:07]} 6. Bc4 {[%emt 0:00:14]} e6 {[%emt 0:00:24]} 7. Be3 {[%emt 0:00:09]} Bd7 {[%emt 0:00:18]} 8. Qe2 {[%emt 0:01:26]} a6 {[%emt 0:00:41]} 9. Bb3 {[%emt 0:00:25]} b5 {[%emt 0:00:10]} 10. O-O-O {[%emt 0:02:33]} Na5 {[%emt 0:00:49]} 11. Bg5 {[%emt 0:24:10][%cal Ob3e6] Strongly threatening Bxe6!} Be7 {[%emt 0:31:57] Black has an edge.} 12. f4 {[%emt 0:01:21][%cal Ob3e6] And now Bxe6! would win.} O-O {[%emt 0:06:19]} 13. e5 {[%emt 0:22:50]} dxe5 {[%emt 0:02:11]} 14. fxe5 {[%emt 0:00:48] [#]} Nd5 {[%emt 0:02:04]} 15. Bxe7 {[%emt 0:00:32]} Nxc3 {[%emt 0:00:39]} 16. Bxd8 {[%emt 0:00:06]} Nxe2+ {[%emt 0:00:39]} 17. Nxe2 {[%emt 0:00:01]} Rfxd8 {[%emt 0:05:11][%cal Bf8d8,Bd8d4,Bd4g4,Bg4g5][%mdl 32]} 18. Nf4 {[%emt 0:00:06]} g5 {[%emt 0:15:07]} 19. Nd3 {[%emt 0:08:30]} Bc6 {[%emt 0:01:09]} 20. h4 {[%emt 0:01:53]} Rd4 {[%emt 0:04:15]} 21. hxg5 {[%emt 0:01:21]} Rg4 {[%emt 0:00:09]} 22. Rh2 {[%emt 0:16:24]} Rxg5 {[%emt 0:04:59]} (22... Bxg2 $2 23. Nf2 Bf3 (23... Rxg5 $2 24. Rg1 $18) (23... Nxb3+ $2 24. axb3 Bf3 25. Nxg4 $18) 24. Nxg4 Bxg4 25. Rd6 $18) 23. Re1 $1 {[%emt 0:00:04] Prevents Be4} Rd8 {[%emt 0:09:24]} (23... Bxg2 $2 24. Rg1 $18) (23... Rxg2 $2 24. Rxg2+ Bxg2 25. Rg1 $18) (23... Kh8 $15 24. Rf1 Ra7) 24. Nf4 $11 {[%emt 0:01:05][%cal Ob3e6]} Rd4 {[%emt 0:01:29]} 25. Nh5 {[%emt 0:00:53]} Kf8 {[%emt 0:02:17]} (25... Bxg2 $2 {too greedy.} 26. Rg1 $18 (26. Nf6+ Kg7 $18)) 26. Nf6 {[%emt 0:02:58] Prevents Re4} Rxg2 {[%emt 0:00:35]} 27. Rxg2 {[%emt 0:00:52]} Bxg2 {[%emt 0:00:02]} 28. Rg1 $1 {[%emt 0:05:53]} (28. Nxh7+ $2 {loses.} Ke7 29. Nf6 Nc6 30. Ng8+ Kf8 $19) 28... Bc6 {[%emt 0:00:30]} 29. Nxh7+ {[%emt 0:01:08]} Ke7 {[%emt 0:00:09]} 30. Nf6 {[%emt 0:01:05]} Rf4 {[%emt 0:07:06]} 31. c3 {[%emt 0:03:07]} Rf5 {[%emt 0:00:56]} 32. Re1 {[%emt 0:00:02]} Rf2 {[%emt 0:03:12]} 33. Ng8+ {[%emt 0:01:16]} Kf8 {[%emt 0:00:21]} 34. Nf6 {[%emt 0:00:01]} Bg2 {[%emt 0:01:49]} 35. Rg1 {[%emt 0:03:37]} Nc6 {[%emt 0:01:17]} 36. Ng4 {[%emt 0:00:05] The position is equal.} Rf1+ {[%emt 0:00:29]} (36... Re2 37. Bd1 Bf3 38. Bxe2 Bxe2 39. b3 Bxg4 40. Rxg4 Nxe5 41. Rg3 $16) 37. Rxf1 {[%emt 0:00:02]} Bxf1 {[%emt 0:00:01][%mdl 4096] Endgame. KBN-KBN} 38. Bc2 {[%emt 0:00:16]} Bg2 {[%emt 0:00:20]} 39. Bd1 {[%emt 0:01:52] Dodges Bf3} Kg7 {[%emt 0:01:08]} 40. a4 {[%emt 0:00:02]} Kg6 {[%emt 0:00:57]} 41. axb5 {[%emt 0:00:15]} axb5 {[%emt 0:00:01]} 42. Be2 {[%emt 0:00:31]} Kg5 {[%emt 0:00:57]} 43. Kd2 {[%emt 0:01:04]} b4 {[%emt 0:00:28]} 44. cxb4 {[%emt 0:00:15]} Nxb4 {[%emt 0:00:01]} 45. Kc3 {[%emt 0:01:28]} Nc6 {[%emt 0:00:11]} 46. Ne3 {[%emt 0:00:10]} Be4 {[%emt 0:00:44]} 47. Nc4 {[%emt 0:00:10]} Kf4 {[%emt 0:00:12]} 48. Nd6 {[%emt 0:00:54]} Nxe5 {[%emt 0:00:08]} 49. b4 {[%emt 0:00:01]} Bd5 {[%emt 0:01:44]} 50. b5 {[%emt 0:00:15]} Ke3 {[%emt 0:00:11]} 51. Bc4 {[%emt 0:01:20]} Nxc4 {[%emt 0:00:25]} 52. Nxc4+ {[%emt 0:00:02] KB-KN} Ke2 {[%emt 0:01:01]} 53. Kd4 {[%emt 0:00:59]} f5 {[%emt 0:00:06]} 54. Ne3 {[%emt 0:00:17]} Be4 {[%emt 0:00:39][%cal Oe6e5]} 55. b6 {[%emt 0:00:03] [#]} e5+ $1 {[%emt 0:00:30]} 56. Kxe5 {[%emt 0:00:05]} Kxe3 {[%emt 0:00:03]} 57. b7 $1 {[%emt 0:00:01]} Bxb7 {[%emt 0:00:12] ( -> ...f4)} 58. Kxf5 {[%emt 0:00:02] Weighted Error Value: White=0.05 (flawless) /Black=0.05 (flawless) .  Mistake:       	---       	Black=1      Inaccurate:     	White=4     	Black=3      OK:         	White=19    	Black=23     Best:        	White=8     	Black=2      Strong:       	White=3     	---        Brilliant:      	---       	Black=1} 1/2-1/2